Workbook

Sheet POINT1.0
A1: P.O.I.N.T. | D1: Presentatie van de Opportuniteitskosten van Introductie van Nieuwe (medische) Technologieën | H1: Voor uitgebreide toelichting, zie document: Handleiding bij POINT 1.0 | K1: Uitkomsten
A2: Versie 1.0
H3: De uitkomsten worden berekend op basis van het rapport Verdringingseffecten binnen het Nederlandse zorgstelsel: op weg naar transparantie (te verschijnen) --> | K3: Aantal gewonnen QALYs | N3: =E5*1000000/E6 -> 500
K4: Aantal verloren QALYs | N4: =IF(E18="",data!M20,E5*1000000/E18) -> 681.14197 | P4: Netto gezondheidseffect
A5: Budgetimpact nieuwe technologie | E5: 50 | F5: Miljoen euro | H5: <-- Vul hier de budgetimpact in miljoenen euro's in | K5: Drempelwaarde | N5: =IF(E18="",data!I20,E18) -> 73406.13587 | P5: =N3-N4 -> -181.14197 | Q5: QALYs
A6: Kosteneffectiviteit nieuwe technologie | E6: 100000 | F6: Euro per QALY | H6: <-- Vul hier de kosteneffectiviteitsratio (ICER) in van het nieuwe geneesmiddel | K6: Is de toelating kosteneffectief? | N6: =IF(E6>data!I20,"nee", "Ja") -> nee
K7: Vereiste prijsdaling | N7: =IF(E6>N5,(E6-N5)/E6, "n.v.t.") -> 0.2659386413
H9: 1. Bij een open budget (standaard) gaat het nieuwe geneesmiddel ten koste van andere investeringen, bij een gesloten budget gaat het nieuwe geneesmiddel ten koste van bestaande zorg.
A10: Parameters
A12: 1. Open of gesloten budget | E12: open | H12: 2. Bij non-lineairiteit heeft een hogere budgetimpact effect op de drempelwaarde. Als non-lineairiteit niet wordt toegestaan is sprake van een lineaire relatie tussen uitgaven en uitkomsten, en heeft de budgetimpact geen invloed.
A13: 2. Toestaan non-lineairiteit | E13: ja
A14: 3. Engelse verdringingswaarden | E14: nee
A15: 4a. Extra verdringing binnen ziektecategorie | E15: niet van toepassing | H15: 3. Standaard worden de empirische waarden uit het Nederlandse onderzoek naar verdringing gebruikt. In de VK wordt een andere metodologie gebruikt, die lagere drempelwaarden oplevert.
A16: 4b. ICD-hoofdstuk nieuwe technologie | E16: alle hoofdstukken
A17: 5. Berekening uitgaven-elasticiteit | E17: historisch
A18: 6. Eigen referentiewaarde | F18: per QALY | H18: 4a. Standaard nemen we aan dat de kosten van een nieuwe technologie over de hele ziekenhuiszorg wordt verdeeld. Het percentage van de kosten die binnen een afdeling extra wordt verdrongen kan worden verhoogd. Dit veronderstelt een gesloten budget
H21: 4b. Kies het betreffende ICD-hoofdstuk van de nieuwe technologie
H22: 5. Standaard wordt budgetdruk verdeeld op basis van historische verandering in uitgaven tussen 2012 en 2014. Alternatief is om budgetdruk proportioneel aan totale uitgaven over categorieën te verdelen.
H25: 6. Hier valt een eigen referentiewaarde in te vullen, bijvoorbeeld 80.000 euro per QALY.
A54: Lijst 1
A56: open | B56: nee | C56: alle hoofdstukken | E56: niet van toepassing
A57: gesloten | B57: ja | C57: infectieziekten | D57: =IF(POINT1.0!$E$12="open",lijsten!$E$3,lijsten!E57) -> niet van toepassing | E57: 0 | G57: historisch
C58: nieuwvormingen | D58: =IF(POINT1.0!$E$12="open",lijsten!$E$3,lijsten!E58) -> niet van toepassing | E58: 0.1 | G58: proportioneel
C59: bloedziekten | D59: =IF(POINT1.0!$E$12="open",lijsten!$E$3,lijsten!E59) -> niet van toepassing | E59: 0.2
C60: endocriene aandoeningen | D60: =IF(POINT1.0!$E$12="open",lijsten!$E$3,lijsten!E60) -> niet van toepassing | E60: 0.3
C61: psychische aandoeningen | D61: =IF(POINT1.0!$E$12="open",lijsten!$E$3,lijsten!E61) -> niet van toepassing | E61: 0.4
C62: zenuwziekten | D62: =IF(POINT1.0!$E$12="open",lijsten!$E$3,lijsten!E62) -> niet van toepassing | E62: 0.5
C63: oog- en oorziekten | D63: =IF(POINT1.0!$E$12="open",lijsten!$E$3,lijsten!E63) -> niet van toepassing | E63: 0.6
C64: hart- en vaatziekten | D64: =IF(POINT1.0!$E$12="open",lijsten!$E$3,lijsten!E64) -> niet van toepassing | E64: 0.7
C65: longziekten | D65: =IF(POINT1.0!$E$12="open",lijsten!$E$3,lijsten!E65) -> niet van toepassing | E65: 0.8
C66: gastrointestinale ziekten | D66: =IF(POINT1.0!$E$12="open",lijsten!$E$3,lijsten!E66) -> niet van toepassing | E66: 0.9
C67: huidziekten | D67: =IF(POINT1.0!$E$12="open",lijsten!$E$3,lijsten!E67) -> niet van toepassing | E67: 1
C68: botspierziekten
C69: urogenitale ziekten
C70: zwangerschap en nieuwgeborenen
C71: congenitale ziekten
C72: overige symptomen
C73: letsels

Sheet data (hidden)
A1: Tabel 1: verandering van uitgaven | L1: =IF(POINT1.0!E12="open",0,IF(POINT1.0!E16="alle hoofdstukken",0,POINT1.0!E15)) -> 0
A2: categorie | B2: Uitgaven in miljoenen (2012) | C2: Uitgaven in miljoenen (2014) | D2: verandering 2012-2014 | E2: verandering bij budgetgroei | F2: elasticiteit bij budgetgroei | G2: verandering bij budgetdruk | H2: elasticiteit bij budgetdruk | I2: grenswaarde | J2: verloren QALYs per miljoen | K2: uitgaven | L2: uitgaven afdeling | M2: verloren QALYs | O2: elasticiteit evenredig
A3: infectieziekten | B3: 217.9528 | C3: 209.9286 | D3: =C3-B3 -> -8.0242 | E3: =D3-$D$14 -> 117.5148 | F3: =E3/$E$20 -> 0.05804068461 | G3: =D3-$D$4 -> -421.1852 | H3: =G3/$G$20 -> 0.05904573303 | I3: 53549.71076 | J3: =IF(POINT1.0!$E$12="open",1000000*F3/I3,1000000*data!H3/data!I3) -> 1.083865511 | K3: =IF(POINT1.0!$E$17="proportioneel",data!O3*1000000,IF(POINT1.0!$E$12="open",1000000*F3,1000000*data!H3)) -> 58040.68461 | L3: =IF(POINT1.0!$E$15="niet van toepassing",IF(A3=POINT1.0!$E$16,1000000*POINT1.0!$E$5*0+(1-0)*POINT1.0!$E$5*data!K3,(1-0)*POINT1.0!$E$5*data!K3),IF(A3=POINT1.0!$E$16,1000000*POINT1.0!$E$5*$L$1+(1-$L$1)*POINT1.0!$E$5*data!K3,(1-$L$1)*POINT1.0!$E$5*data!K3)) -> 2902034.23 | M3: =IF(POINT1.0!$E$14="nee",IF(POINT1.0!$E$13="nee",L3/I3,data!L3/data!G24),data!L3/data!J24) -> 53.96616047 | N3: 433.5203534 | O3: =C3/$C$20 -> 0.0106489566 | Q3: =(L3*H24)/(B3*1000000) -> 1329.98564 | R3: =H24-Q3 -> 98556.5323 | S3: =LN(R3) -> 11.49838559
A4: nieuwvormingen | B4: 3241.358 | C4: 3654.519 | D4: =C4-B4 -> 413.161 | E4: =D4-$D$14 -> 538.7 | F4: =E4/$E$20 -> 0.2660645025 | G4: =D4-$D$4 -> 0 | H4: =G4/$G$20 -> 0 | I4: 68309.56956 | J4: =IF(POINT1.0!$E$12="open",1000000*F4/I4,1000000*data!H4/data!I4) -> 3.894981395 | K4: =IF(POINT1.0!$E$17="proportioneel",data!O4*1000000,IF(POINT1.0!$E$12="open",1000000*F4,1000000*data!H4)) -> 266064.5025 | L4: =IF(POINT1.0!$E$15="niet van toepassing",IF(A4=POINT1.0!$E$16,1000000*POINT1.0!$E$5*0+(1-0)*POINT1.0!$E$5*data!K4,(1-0)*POINT1.0!$E$5*data!K4),IF(A4=POINT1.0!$E$16,1000000*POINT1.0!$E$5*$L$1+(1-$L$1)*POINT1.0!$E$5*data!K4,(1-$L$1)*POINT1.0!$E$5*data!K4)) -> 13303225.12 | M4: =IF(POINT1.0!$E$14="nee",IF(POINT1.0!$E$13="nee",L4/I4,data!L4/data!G25),data!L4/data!J25) -> 194.6153513 | N4: 1499.470967 | O4: =C4/$C$20 -> 0.1853811926 | Q4: =(L4*H25)/(B4*1000000) -> 825.5326709 | R4: =H25-Q4 -> 200317.1904 | S4: =LN(R4) -> 12.20765734
A5: bloedziekten | B5: 140.1983 | C5: 137.9272 | D5: -2.2711 | E5: 123.2679 | F5: 0.06088214681 | G5: -415.4321 | H5: 0.05823920895 | I5: 201800.3179 | J5: =IF(POINT1.0!$E$12="open",1000000*F5/I5,1000000*data!H5/data!I5) -> 0.3016949996 | K5: =IF(POINT1.0!$E$17="proportioneel",data!O5*1000000,IF(POINT1.0!$E$12="open",1000000*F5,1000000*data!H5)) -> 60882.14681 | L5: =IF(POINT1.0!$E$15="niet van toepassing",IF(A5=POINT1.0!$E$16,1000000*POINT1.0!$E$5*0+(1-0)*POINT1.0!$E$5*data!K5,(1-0)*POINT1.0!$E$5*data!K5),IF(A5=POINT1.0!$E$16,1000000*POINT1.0!$E$5*$L$1+(1-$L$1)*POINT1.0!$E$5*data!K5,(1-$L$1)*POINT1.0!$E$5*data!K5)) -> 3044107.341 | M5: =IF(POINT1.0!$E$14="nee",IF(POINT1.0!$E$13="nee",L5/I5,data!L5/data!G26),data!L5/data!J26) -> 14.93218599 | N5: 315.9671066 | O5: 0.006996572964 | Q5: 3473.819032 | R5: 156515.1263 | S5: 11.96090794
A6: endocriene aandoeningen | B6: 422.7566 | C6: 435.5289 | D6: 12.7723 | E6: 138.3113 | F6: 0.06831209806 | G6: -400.3887 | H6: 0.05613028257 | I6: 75719.9349 | J6: =IF(POINT1.0!$E$12="open",1000000*F6/I6,1000000*data!H6/data!I6) -> 0.9021679449 | K6: =IF(POINT1.0!$E$17="proportioneel",data!O6*1000000,IF(POINT1.0!$E$12="open",1000000*F6,1000000*data!H6)) -> 68312.09806 | L6: =IF(POINT1.0!$E$15="niet van toepassing",IF(A6=POINT1.0!$E$16,1000000*POINT1.0!$E$5*0+(1-0)*POINT1.0!$E$5*data!K6,(1-0)*POINT1.0!$E$5*data!K6),IF(A6=POINT1.0!$E$16,1000000*POINT1.0!$E$5*$L$1+(1-$L$1)*POINT1.0!$E$5*data!K6,(1-$L$1)*POINT1.0!$E$5*data!K6)) -> 3415604.903 | M6: =IF(POINT1.0!$E$14="nee",IF(POINT1.0!$E$13="nee",L6/I6,data!L6/data!G27),data!L6/data!J27) -> 45.03911459 | N6: 513.6605921 | O6: 0.0220928847 | Q6: 838.502874 | R6: 102944.7608 | S6: 11.54194782
A7: psychische aandoeningen | B7: 135.733 | C7: 139.7434 | D7: 4.0104 | E7: 129.5494 | F7: 0.06398458634 | G7: -409.1506 | H7: 0.05735860875 | I7: 63952.78059 | J7: =IF(POINT1.0!$E$12="open",1000000*F7/I7,1000000*data!H7/data!I7) -> 1.000497332 | K7: =IF(POINT1.0!$E$17="proportioneel",data!O7*1000000,IF(POINT1.0!$E$12="open",1000000*F7,1000000*data!H7)) -> 63984.58634 | L7: =IF(POINT1.0!$E$15="niet van toepassing",IF(A7=POINT1.0!$E$16,1000000*POINT1.0!$E$5*0+(1-0)*POINT1.0!$E$5*data!K7,(1-0)*POINT1.0!$E$5*data!K7),IF(A7=POINT1.0!$E$16,1000000*POINT1.0!$E$5*$L$1+(1-$L$1)*POINT1.0!$E$5*data!K7,(1-$L$1)*POINT1.0!$E$5*data!K7)) -> 3199229.317 | M7: =IF(POINT1.0!$E$14="nee",IF(POINT1.0!$E$13="nee",L7/I7,data!L7/data!G28),data!L7/data!J28) -> 49.79041157 | N7: 843.9346087 | O7: 0.00708870255 | Q7: 591.4813906 | R7: 24503.16974 | S7: 10.10655777
A8: zenuwziekten | B8: 673.2572 | C8: 666.7282 | D8: -6.529 | E8: 119.01 | F8: 0.05877916548 | G8: -419.69 | H8: 0.05883612173 | I8: 33464.53923 | J8: =IF(POINT1.0!$E$12="open",1000000*F8/I8,1000000*data!H8/data!I8) -> 1.756461222 | K8: =IF(POINT1.0!$E$17="proportioneel",data!O8*1000000,IF(POINT1.0!$E$12="open",1000000*F8,1000000*data!H8)) -> 58779.16548 | L8: =IF(POINT1.0!$E$15="niet van toepassing",IF(A8=POINT1.0!$E$16,1000000*POINT1.0!$E$5*0+(1-0)*POINT1.0!$E$5*data!K8,(1-0)*POINT1.0!$E$5*data!K8),IF(A8=POINT1.0!$E$16,1000000*POINT1.0!$E$5*$L$1+(1-$L$1)*POINT1.0!$E$5*data!K8,(1-$L$1)*POINT1.0!$E$5*data!K8)) -> 2938958.274 | M8: =IF(POINT1.0!$E$14="nee",IF(POINT1.0!$E$13="nee",L8/I8,data!L8/data!G29),data!L8/data!J29) -> 87.7059098 | N8: 565.9476177 | O8: 0.03382083083 | Q8: 1535.463799 | R8: 350208.917 | S8: 12.76628516
A9: oog- en oorziekten | B9: 1039.881 | C9: 920.6673 | D9: -119.2137 | E9: 6.3253 | F9: 0.003124072392 | G9: -532.3747 | H9: 0.07463333092 | I9: 42701.56005 | J9: =IF(POINT1.0!$E$12="open",1000000*F9/I9,1000000*data!H9/data!I9) -> 0.07316061494 | K9: =IF(POINT1.0!$E$17="proportioneel",data!O9*1000000,IF(POINT1.0!$E$12="open",1000000*F9,1000000*data!H9)) -> 3124.072392 | L9: =IF(POINT1.0!$E$15="niet van toepassing",IF(A9=POINT1.0!$E$16,1000000*POINT1.0!$E$5*0+(1-0)*POINT1.0!$E$5*data!K9,(1-0)*POINT1.0!$E$5*data!K9),IF(A9=POINT1.0!$E$16,1000000*POINT1.0!$E$5*$L$1+(1-$L$1)*POINT1.0!$E$5*data!K9,(1-$L$1)*POINT1.0!$E$5*data!K9)) -> 156203.6196 | M9: =IF(POINT1.0!$E$14="nee",IF(POINT1.0!$E$13="nee",L9/I9,data!L9/data!G30),data!L9/data!J30) -> 3.65789833 | N9: 848.5320656 | O9: 0.04670228889 | Q9: 29.12344642 | R9: 193851.9061 | S9: 12.17484978
A10: hart- en vaatziekten | B10: 3122.646 | C10: 3050.636 | D10: -72.01 | E10: 53.529 | F10: 0.02643802999 | G10: -485.171 | H10: 0.06801586889 | I10: 95711.52752 | J10: =IF(POINT1.0!$E$12="open",1000000*F10/I10,1000000*data!H10/data!I10) -> 0.2762261837 | K10: =IF(POINT1.0!$E$17="proportioneel",data!O10*1000000,IF(POINT1.0!$E$12="open",1000000*F10,1000000*data!H10)) -> 26438.02999 | L10: =IF(POINT1.0!$E$15="niet van toepassing",IF(A10=POINT1.0!$E$16,1000000*POINT1.0!$E$5*0+(1-0)*POINT1.0!$E$5*data!K10,(1-0)*POINT1.0!$E$5*data!K10),IF(A10=POINT1.0!$E$16,1000000*POINT1.0!$E$5*$L$1+(1-$L$1)*POINT1.0!$E$5*data!K10,(1-$L$1)*POINT1.0!$E$5*data!K10)) -> 1321901.499 | M10: =IF(POINT1.0!$E$14="nee",IF(POINT1.0!$E$13="nee",L10/I10,data!L10/data!G31),data!L10/data!J31) -> 13.81065826 | N10: 908.2965057 | O10: 0.1547482829 | Q10: 70.57777064 | R10: 166650.9165 | S10: 12.02365658
A11: longziekten | B11: 1060.452 | C11: 992.3215 | D11: -68.1305 | E11: 57.4085 | F11: 0.02835411916 | G11: -481.2915 | H11: 0.06747200381 | I11: 59556.8189 | J11: =IF(POINT1.0!$E$12="open",1000000*F11/I11,1000000*data!H11/data!I11) -> 0.4760851853 | K11: =IF(POINT1.0!$E$17="proportioneel",data!O11*1000000,IF(POINT1.0!$E$12="open",1000000*F11,1000000*data!H11)) -> 28354.11916 | L11: =IF(POINT1.0!$E$15="niet van toepassing",IF(A11=POINT1.0!$E$16,1000000*POINT1.0!$E$5*0+(1-0)*POINT1.0!$E$5*data!K11,(1-0)*POINT1.0!$E$5*data!K11),IF(A11=POINT1.0!$E$16,1000000*POINT1.0!$E$5*$L$1+(1-$L$1)*POINT1.0!$E$5*data!K11,(1-$L$1)*POINT1.0!$E$5*data!K11)) -> 1417705.958 | M11: =IF(POINT1.0!$E$14="nee",IF(POINT1.0!$E$13="nee",L11/I11,data!L11/data!G32),data!L11/data!J32) -> 23.79679608 | N11: 449.2159883 | O11: 0.05033706026 | Q11: 456.4456028 | R11: 340967.4227 | S11: 12.73954222
A12: gastrointestinale ziekten | B12: 1278.748 | C12: 1272.216 | D12: -6.532 | E12: 119.007 | F12: 0.05877768377 | G12: -419.693 | H12: 0.05883654229 | I12: 116765.1017 | J12: =IF(POINT1.0!$E$12="open",1000000*F12/I12,1000000*data!H12/data!I12) -> 0.5033839985 | K12: =IF(POINT1.0!$E$17="proportioneel",data!O12*1000000,IF(POINT1.0!$E$12="open",1000000*F12,1000000*data!H12)) -> 58777.68377 | L12: =IF(POINT1.0!$E$15="niet van toepassing",IF(A12=POINT1.0!$E$16,1000000*POINT1.0!$E$5*0+(1-0)*POINT1.0!$E$5*data!K12,(1-0)*POINT1.0!$E$5*data!K12),IF(A12=POINT1.0!$E$16,1000000*POINT1.0!$E$5*$L$1+(1-$L$1)*POINT1.0!$E$5*data!K12,(1-$L$1)*POINT1.0!$E$5*data!K12)) -> 2938884.189 | M12: =IF(POINT1.0!$E$14="nee",IF(POINT1.0!$E$13="nee",L12/I12,data!L12/data!G33),data!L12/data!J33) -> 25.15301713 | N12: 590.9985146 | O12: 0.06453514658 | Q12: 1051.279453 | R12: 456374.5367 | S12: 13.0310691
A13: huidziekten | B13: 321.6364 | C13: 278.1277 | D13: -43.5087 | E13: 82.0303 | F13: 0.04051485235 | G13: -456.6697 | H13: 0.06402028654 | I13: 38479.40079 | J13: =IF(POINT1.0!$E$12="open",1000000*F13/I13,1000000*data!H13/data!I13) -> 1.052897174 | K13: =IF(POINT1.0!$E$17="proportioneel",data!O13*1000000,IF(POINT1.0!$E$12="open",1000000*F13,1000000*data!H13)) -> 40514.85235 | L13: =IF(POINT1.0!$E$15="niet van toepassing",IF(A13=POINT1.0!$E$16,1000000*POINT1.0!$E$5*0+(1-0)*POINT1.0!$E$5*data!K13,(1-0)*POINT1.0!$E$5*data!K13),IF(A13=POINT1.0!$E$16,1000000*POINT1.0!$E$5*$L$1+(1-$L$1)*POINT1.0!$E$5*data!K13,(1-$L$1)*POINT1.0!$E$5*data!K13)) -> 2025742.617 | M13: =IF(POINT1.0!$E$14="nee",IF(POINT1.0!$E$13="nee",L13/I13,data!L13/data!G34),data!L13/data!J34) -> 52.51887836 | N13: 385.9953851 | O13: 0.01410846263 | Q13: 1515.036247 | R13: 239034.1827 | S13: 12.38436184
A14: botspierziekten | B14: 2175.781 | C14: 2050.242 | D14: -125.539 | E14: 0 | F14: 0 | G14: -538.7 | H14: 0.07552007142 | I14: 117236.9029 | J14: =IF(POINT1.0!$E$12="open",1000000*F14/I14,1000000*data!H14/data!I14) -> 0 | K14: =IF(POINT1.0!$E$17="proportioneel",data!O14*1000000,IF(POINT1.0!$E$12="open",1000000*F14,1000000*data!H14)) -> 0 | L14: =IF(POINT1.0!$E$15="niet van toepassing",IF(A14=POINT1.0!$E$16,1000000*POINT1.0!$E$5*0+(1-0)*POINT1.0!$E$5*data!K14,(1-0)*POINT1.0!$E$5*data!K14),IF(A14=POINT1.0!$E$16,1000000*POINT1.0!$E$5*$L$1+(1-$L$1)*POINT1.0!$E$5*data!K14,(1-$L$1)*POINT1.0!$E$5*data!K14)) -> 0 | M14: =IF(POINT1.0!$E$14="nee",IF(POINT1.0!$E$13="nee",L14/I14,data!L14/data!G35),data!L14/data!J35) -> 0 | N14: 740.1329401 | O14: 0.1040017324 | Q14: 0 | R14: 267769.0141 | S14: 12.49788
A15: urogenitale ziekten | B15: 1547.08 | C15: 1449.891 | D15: -97.189 | E15: 28.35 | F15: 0.01400209513 | G15: -510.35 | H15: 0.07154569974 | I15: 138360.5698 | J15: =IF(POINT1.0!$E$12="open",1000000*F15/I15,1000000*data!H15/data!I15) -> 0.1012000395 | K15: =IF(POINT1.0!$E$17="proportioneel",data!O15*1000000,IF(POINT1.0!$E$12="open",1000000*F15,1000000*data!H15)) -> 14002.09513 | L15: =IF(POINT1.0!$E$15="niet van toepassing",IF(A15=POINT1.0!$E$16,1000000*POINT1.0!$E$5*0+(1-0)*POINT1.0!$E$5*data!K15,(1-0)*POINT1.0!$E$5*data!K15),IF(A15=POINT1.0!$E$16,1000000*POINT1.0!$E$5*$L$1+(1-$L$1)*POINT1.0!$E$5*data!K15,(1-$L$1)*POINT1.0!$E$5*data!K15)) -> 700104.7564 | M15: =IF(POINT1.0!$E$14="nee",IF(POINT1.0!$E$13="nee",L15/I15,data!L15/data!G36),data!L15/data!J36) -> 5.05972052 | N15: 775.2062635 | O15: 0.07354798888 | Q15: 50.40145958 | R15: 111325.9167 | S15: 11.62021736
A16: zwangerschap en nieuwgeborenen | B16: 620.4463 | C16: 596.637 | D16: -23.8093 | E16: 101.7297 | F16: 0.05024440694 | G16: -436.9703 | H16: 0.06125863795 | I16: 215797.8507 | J16: =IF(POINT1.0!$E$12="open",1000000*F16/I16,1000000*data!H16/data!I16) -> 0.2328308961 | K16: =IF(POINT1.0!$E$17="proportioneel",data!O16*1000000,IF(POINT1.0!$E$12="open",1000000*F16,1000000*data!H16)) -> 50244.40694 | L16: =IF(POINT1.0!$E$15="niet van toepassing",IF(A16=POINT1.0!$E$16,1000000*POINT1.0!$E$5*0+(1-0)*POINT1.0!$E$5*data!K16,(1-0)*POINT1.0!$E$5*data!K16),IF(A16=POINT1.0!$E$16,1000000*POINT1.0!$E$5*$L$1+(1-$L$1)*POINT1.0!$E$5*data!K16,(1-$L$1)*POINT1.0!$E$5*data!K16)) -> 2512220.347 | M16: =IF(POINT1.0!$E$14="nee",IF(POINT1.0!$E$13="nee",L16/I16,data!L16/data!G37),data!L16/data!J37) -> 11.63763003 | N16: 107.7455629 | O16: 0.03026534508 | Q16: 265.3123748 | R16: 65259.2271 | S16: 11.08612273
A17: congenitale ziekten | B17: 133.78 | C17: 180.3315 | D17: 46.5515 | E17: 172.0905 | F17: 0.08499568084 | G17: -366.6095 | H17: 0.05139479418 | I17: 102805.8401 | J17: =IF(POINT1.0!$E$12="open",1000000*F17/I17,1000000*data!H17/data!I17) -> 0.8267592655 | K17: =IF(POINT1.0!$E$17="proportioneel",data!O17*1000000,IF(POINT1.0!$E$12="open",1000000*F17,1000000*data!H17)) -> 84995.68084 | L17: =IF(POINT1.0!$E$15="niet van toepassing",IF(A17=POINT1.0!$E$16,1000000*POINT1.0!$E$5*0+(1-0)*POINT1.0!$E$5*data!K17,(1-0)*POINT1.0!$E$5*data!K17),IF(A17=POINT1.0!$E$16,1000000*POINT1.0!$E$5*$L$1+(1-$L$1)*POINT1.0!$E$5*data!K17,(1-$L$1)*POINT1.0!$E$5*data!K17)) -> 4249784.042 | M17: =IF(POINT1.0!$E$14="nee",IF(POINT1.0!$E$13="nee",L17/I17,data!L17/data!G38),data!L17/data!J38) -> 41.10877274 | N17: 683.3524426 | O17: 0.00914759741 | Q17: 838.0028557 | R17: 25541.69572 | S17: 10.14806752
A18: overige symptomen | B18: 788.4654 | C18: 747.4417 | D18: -41.0237 | E18: 84.5153 | F18: 0.04174219649 | G18: -454.1847 | H18: 0.06367191569 | I18: 71662.66274 | J18: =IF(POINT1.0!$E$12="open",1000000*F18/I18,1000000*data!H18/data!I18) -> 0.5824817958 | K18: =IF(POINT1.0!$E$17="proportioneel",data!O18*1000000,IF(POINT1.0!$E$12="open",1000000*F18,1000000*data!H18)) -> 41742.19649 | L18: =IF(POINT1.0!$E$15="niet van toepassing",IF(A18=POINT1.0!$E$16,1000000*POINT1.0!$E$5*0+(1-0)*POINT1.0!$E$5*data!K18,(1-0)*POINT1.0!$E$5*data!K18),IF(A18=POINT1.0!$E$16,1000000*POINT1.0!$E$5*$L$1+(1-$L$1)*POINT1.0!$E$5*data!K18,(1-$L$1)*POINT1.0!$E$5*data!K18)) -> 2087109.824 | M18: =IF(POINT1.0!$E$14="nee",IF(POINT1.0!$E$13="nee",L18/I18,data!L18/data!G39),data!L18/data!J39) -> 29.10197825 | N18: 1351.394973 | O18: 0.03791514937 | Q18: 360.7487473 | R18: 135922.4032 | S18: 11.81983944
A19: letsels | B19: 2902.831 | C19: 2930.65 | D19: 27.819 | E19: 153.358 | F19: 0.07574367918 | G19: -385.342 | H19: 0.05402089356 | I19: 129338.62 | J19: =IF(POINT1.0!$E$12="open",1000000*F19/I19,1000000*data!H19/data!I19) -> 0.5856230658 | K19: =IF(POINT1.0!$E$17="proportioneel",data!O19*1000000,IF(POINT1.0!$E$12="open",1000000*F19,1000000*data!H19)) -> 75743.67918 | L19: =IF(POINT1.0!$E$15="niet van toepassing",IF(A19=POINT1.0!$E$16,1000000*POINT1.0!$E$5*0+(1-0)*POINT1.0!$E$5*data!K19,(1-0)*POINT1.0!$E$5*data!K19),IF(A19=POINT1.0!$E$16,1000000*POINT1.0!$E$5*$L$1+(1-$L$1)*POINT1.0!$E$5*data!K19,(1-$L$1)*POINT1.0!$E$5*data!K19)) -> 3787183.959 | M19: =IF(POINT1.0!$E$14="nee",IF(POINT1.0!$E$13="nee",L19/I19,data!L19/data!G40),data!L19/data!J40) -> 29.24748663 | N19: 40.05169748 | O19: 0.1486618053 | Q19: 70234.22294 | R19: 53763453.77 | S19: 17.8001045
A20: Totaal | B20: =SUM(B3:B19) -> 19823.003 | C20: =SUM(C3:C19) -> 19713.537 | D20: -109.466 | E20: =SUM(E3:E19) -> 2024.697 | F20: =SUM(F3:F19) -> 1 | G20: =SUM(G3:G19) -> -7133.203 | I20: =L20/M20 -> 73406.13587 | J20: =SUM(J3:J19) -> 13.65031662 | L20: =SUM(L3:L19) -> 50000000 | M20: =SUM(M3:M19) -> 681.14197
A23: icdhoofdstuk | B23: totqaly | C23: ckost | D23: lnckost | E23: lnpat | F23: grenswaarde | G23: grenswaarde2 | H23: elnckost | J23: grenswaarde engeland
A24: infectieziekten | B24: 42.39651 | C24: 368480.7 | D24: 11.51179 | E24: 4.522012 | F24: =(C24)/(B24*-1*(2*D24*$B$59+E24*$B$62+B42)) -> 53549.71076 | G24: =IF(POINT1.0!$E$12="open",(C24+Q3)/(B24*-1*(2*I24*$B$59+E24*$B$62+B42)),IF(data!F24-((C24+Q3)/(B24*-1*(2*I24*$B$59+E24*$B$62+B42)))+data!F24>0,data!F24-((C24+Q3)/(B24*-1*(2*I24*$B$59+E24*$B$62+B42)))+data!F24,1)) -> 53775.07322 | H24: =EXP(D24) -> 99886.51794 | I24: =LN(H24+(L3*H24)/(B3*1000000)) -> 11.5250171 | J24: =C70 -> 30143.7388 | L24: =IF(POINT1.0!$E$14="nee",IF(POINT1.0!$E$13="nee",I3,data!G24),data!J24) -> 53775.07322
A25: nieuwvormingen | B25: 168.8931 | C25: 1705283 | D25: 12.21177 | E25: 4.699929 | F25: =(C25)/(B25*-1*(2*D25*$B$59+E25*$B$62+B43)) -> 68309.56956 | G25: =IF(POINT1.0!$E$12="open",(C25+Q4)/(B25*-1*(2*I25*$B$59+E25*$B$62+B43)),IF(data!F25-((C25+Q4)/(B25*-1*(2*I25*$B$59+E25*$B$62+B43)))+data!F25>0,data!F25-((C25+Q4)/(B25*-1*(2*I25*$B$59+E25*$B$62+B43)))+data!F25,1)) -> 68356.50445 | H25: =EXP(D25) -> 201142.7231 | I25: =LN(H25+(L4*H25)/(B4*1000000)) -> 12.21586581 | J25: =C66 -> 24598.06656 | L25: =IF(POINT1.0!$E$14="nee",IF(POINT1.0!$E$13="nee",I4,data!G25),data!J25) -> 68356.50445
A26: bloedziekten | B26: 24.01938 | C26: 415361.1 | D26: 11.98286 | E26: 4.513464 | F26: 201800.3179 | G26: =IF(POINT1.0!$E$12="open",(C26+Q5)/(B26*-1*(2*I26*$B$59+E26*$B$62+B44)),IF(data!F26-((C26+Q5)/(B26*-1*(2*I26*$B$59+E26*$B$62+B44)))+data!F26>0,data!F26-((C26+Q5)/(B26*-1*(2*I26*$B$59+E26*$B$62+B44)))+data!F26,1)) -> 203862.1367 | H26: 159988.9453 | I26: 12.0043405 | J26: =C75 -> 13631.18132 | L26: =IF(POINT1.0!$E$14="nee",IF(POINT1.0!$E$13="nee",I5,data!G26),data!J26) -> 203862.1367
A27: endocriene aandoeningen | B27: 76.22144 | C27: 766444.2 | D27: 11.55006 | E27: 4.648788 | F27: 75719.9349 | G27: =IF(POINT1.0!$E$12="open",(C27+Q6)/(B27*-1*(2*I27*$B$59+E27*$B$62+B45)),IF(data!F27-((C27+Q6)/(B27*-1*(2*I27*$B$59+E27*$B$62+B45)))+data!F27>0,data!F27-((C27+Q6)/(B27*-1*(2*I27*$B$59+E27*$B$62+B45)))+data!F27,1)) -> 75836.41317 | H27: 103783.2636 | I27: 11.5581069 | J27: =C71 -> 4521.0543 | L27: =IF(POINT1.0!$E$14="nee",IF(POINT1.0!$E$13="nee",I6,data!G27),data!J27) -> 75836.41317
A28: psychische aandoeningen | B28: 28.38605 | C28: 191667.6 | D28: 10.13041 | E28: 3.904984 | F28: 63952.78059 | G28: =IF(POINT1.0!$E$12="open",(C28+Q7)/(B28*-1*(2*I28*$B$59+E28*$B$62+B46)),IF(data!F28-((C28+Q7)/(B28*-1*(2*I28*$B$59+E28*$B$62+B46)))+data!F28>0,data!F28-((C28+Q7)/(B28*-1*(2*I28*$B$59+E28*$B$62+B46)))+data!F28,1)) -> 64253.92391 | H28: 25094.65113 | I28: 10.15370653 | J28: =C76 -> 27126.3258 | L28: =IF(POINT1.0!$E$14="nee",IF(POINT1.0!$E$13="nee",I7,data!G28),data!J28) -> 64253.92391
A29: zenuwziekten | B29: 108.5137 | C29: 1236335 | D29: 12.77066 | E29: 5.802835 | F29: =(C29)/(B29*-1*(2*D29*$B$59+E29*$B$62+B47)) -> 33464.53923 | G29: =IF(POINT1.0!$E$12="open",(C29+Q8)/(B29*-1*(2*I29*$B$59+E29*$B$62+B47)),IF(data!F29-((C29+Q8)/(B29*-1*(2*I29*$B$59+E29*$B$62+B47)))+data!F29>0,data!F29-((C29+Q8)/(B29*-1*(2*I29*$B$59+E29*$B$62+B47)))+data!F29,1)) -> 33509.23878 | H29: 351744.3808 | I29: 12.77501578 | J29: =C72 -> 7930.65863 | L29: =IF(POINT1.0!$E$14="nee",IF(POINT1.0!$E$13="nee",I8,data!G29),data!J29) -> 33509.23878
A30: oog- en oorziekten | B30: 199.2085 | C30: 1062895 | D30: 12.175 | E30: 6.377982 | F30: 42701.56005 | G30: =IF(POINT1.0!$E$12="open",(C30+Q9)/(B30*-1*(2*I30*$B$59+E30*$B$62+B48)),IF(data!F30-((C30+Q9)/(B30*-1*(2*I30*$B$59+E30*$B$62+B48)))+data!F30>0,data!F30-((C30+Q9)/(B30*-1*(2*I30*$B$59+E30*$B$62+B48)))+data!F30,1)) -> 42703.10586 | H30: 193881.0295 | I30: 12.1751502 | J30: =AVERAGE(C78,C79) -> 37646.74969 | L30: =IF(POINT1.0!$E$14="nee",IF(POINT1.0!$E$13="nee",I9,data!G30),data!J30) -> 42703.10586
A31: hart- en vaatziekten | B31: 207.6115 | C31: 2803740 | D31: 12.02408 | E31: 4.910798 | F31: 95711.52752 | G31: =IF(POINT1.0!$E$12="open",(C31+Q10)/(B31*-1*(2*I31*$B$59+E31*$B$62+B49)),IF(data!F31-((C31+Q10)/(B31*-1*(2*I31*$B$59+E31*$B$62+B49)))+data!F31>0,data!F31-((C31+Q10)/(B31*-1*(2*I31*$B$59+E31*$B$62+B49)))+data!F31,1)) -> 95716.03859 | H31: 166721.4942 | I31: 12.02450324 | J31: =C67 -> 10185.39698 | L31: =IF(POINT1.0!$E$14="nee",IF(POINT1.0!$E$13="nee",I10,data!G31),data!J31) -> 95716.03859
A32: longziekten | B32: 171.2602 | C32: 1773573 | D32: 12.74088 | E32: 5.61239 | F32: 59556.8189 | G32: =IF(POINT1.0!$E$12="open",(C32+Q11)/(B32*-1*(2*I32*$B$59+E32*$B$62+B50)),IF(data!F32-((C32+Q11)/(B32*-1*(2*I32*$B$59+E32*$B$62+B50)))+data!F32>0,data!F32-((C32+Q11)/(B32*-1*(2*I32*$B$59+E32*$B$62+B50)))+data!F32,1)) -> 59575.49718 | H32: 341423.8683 | I32: 12.742216 | J32: =C68 -> 2891.506559 | L32: =IF(POINT1.0!$E$14="nee",IF(POINT1.0!$E$13="nee",I11,data!G32),data!J32) -> 59575.49718
A33: gastrointestinale ziekten | B33: 111.8882 | C33: 1975476 | D33: 13.03337 | E33: 5.588702 | F33: 116765.1017 | G33: =IF(POINT1.0!$E$12="open",(C33+Q12)/(B33*-1*(2*I33*$B$59+E33*$B$62+B51)),IF(data!F33-((C33+Q12)/(B33*-1*(2*I33*$B$59+E33*$B$62+B51)))+data!F33>0,data!F33-((C33+Q12)/(B33*-1*(2*I33*$B$59+E33*$B$62+B51)))+data!F33,1)) -> 116840.2253 | H33: 457425.8161 | I33: 13.03566561 | J33: =C69 -> 10554.4331 | L33: =IF(POINT1.0!$E$14="nee",IF(POINT1.0!$E$13="nee",I12,data!G33),data!J33) -> 116840.2253
A34: huidziekten | B34: 121.6499 | C34: 721495.5 | D34: 12.39068 | E34: 6.040036 | F34: 38479.40079 | G34: =IF(POINT1.0!$E$12="open",(C34+Q13)/(B34*-1*(2*I34*$B$59+E34*$B$62+B52)),IF(data!F34-((C34+Q13)/(B34*-1*(2*I34*$B$59+E34*$B$62+B52)))+data!F34>0,data!F34-((C34+Q13)/(B34*-1*(2*I34*$B$59+E34*$B$62+B52)))+data!F34,1)) -> 38571.70375 | H34: 240549.2189 | I34: 12.39695849 | J34: =C81 -> 146228.0309 | L34: =IF(POINT1.0!$E$14="nee",IF(POINT1.0!$E$13="nee",I13,data!G34),data!J34) -> 38571.70375
A35: botspierziekten | B35: 166.7518 | C35: 2802457 | D35: 12.49788 | E35: 5.549412 | F35: 117236.9029 | G35: =IF(POINT1.0!$E$12="open",(C35+Q14)/(B35*-1*(2*I35*$B$59+E35*$B$62+B53)),IF(data!F35-((C35+Q14)/(B35*-1*(2*I35*$B$59+E35*$B$62+B53)))+data!F35>0,data!F35-((C35+Q14)/(B35*-1*(2*I35*$B$59+E35*$B$62+B53)))+data!F35,1)) -> 117236.9029 | H35: 267769.0141 | I35: 12.49788 | J35: =C82 -> 22616.8491 | L35: =IF(POINT1.0!$E$14="nee",IF(POINT1.0!$E$13="nee",I14,data!G35),data!J35) -> 117236.9029
A36: urogenitale ziekten | B36: 106.3567 | C36: 1782269 | D36: 11.62067 | E36: 4.846227 | F36: 138360.5698 | G36: =IF(POINT1.0!$E$12="open",(C36+Q15)/(B36*-1*(2*I36*$B$59+E36*$B$62+B54)),IF(data!F36-((C36+Q15)/(B36*-1*(2*I36*$B$59+E36*$B$62+B54)))+data!F36>0,data!F36-((C36+Q15)/(B36*-1*(2*I36*$B$59+E36*$B$62+B54)))+data!F36,1)) -> 138368.2663 | H36: 111376.3182 | I36: 11.62112243 | J36: =C73 -> 63406.19463 | L36: =IF(POINT1.0!$E$14="nee",IF(POINT1.0!$E$13="nee",I15,data!G36),data!J36) -> 138368.2663
A37: zwangerschap en nieuwgeborenen | B37: 344.8271 | C37: 7334508 | D37: 11.09018 | E37: 4.104056 | F37: 215797.8507 | G37: =IF(POINT1.0!$E$12="open",(C37+Q16)/(B37*-1*(2*I37*$B$59+E37*$B$62+B55)),IF(data!F37-((C37+Q16)/(B37*-1*(2*I37*$B$59+E37*$B$62+B55)))+data!F37>0,data!F37-((C37+Q16)/(B37*-1*(2*I37*$B$59+E37*$B$62+B55)))+data!F37,1)) -> 215870.4428 | H37: 65524.53948 | I37: 11.09422088 | J37: =C74 -> 4297039.243 | L37: =IF(POINT1.0!$E$14="nee",IF(POINT1.0!$E$13="nee",I16,data!G37),data!J37) -> 215870.4428
A38: congenitale ziekten | B38: 22.63305 | C38: 246384.5 | D38: 10.18035 | E38: 3.4819 | F38: 102805.8401 | G38: =IF(POINT1.0!$E$12="open",(C38+Q17)/(B38*-1*(2*I38*$B$59+E38*$B$62+B56)),IF(data!F38-((C38+Q17)/(B38*-1*(2*I38*$B$59+E38*$B$62+B56)))+data!F38>0,data!F38-((C38+Q17)/(B38*-1*(2*I38*$B$59+E38*$B$62+B56)))+data!F38,1)) -> 103379.0055 | H38: 26379.69858 | I38: 10.21162283 | J38: =C85 -> 18720.98541 | L38: =IF(POINT1.0!$E$14="nee",IF(POINT1.0!$E$13="nee",I17,data!G38),data!J38) -> 103379.0055
A39: overige symptomen | B39: 76.20755 | C39: 614000 | D39: 11.82249 | E39: 5.19162 | F39: 71662.66274 | G39: =IF(POINT1.0!$E$12="open",(C39+Q18)/(B39*-1*(2*I39*$B$59+E39*$B$62+B57)),IF(data!F39-((C39+Q18)/(B39*-1*(2*I39*$B$59+E39*$B$62+B57)))+data!F39>0,data!F39-((C39+Q18)/(B39*-1*(2*I39*$B$59+E39*$B$62+B57)))+data!F39,1)) -> 71717.11169 | H39: 136283.152 | I39: 11.82513356 | J39: =C85 -> 18720.98541 | L39: =IF(POINT1.0!$E$14="nee",IF(POINT1.0!$E$13="nee",I18,data!G39),data!J39) -> 71717.11169
A40: letsels | B40: 5574.353 | C40: 67000000 | D40: 17.80141 | E40: 10.70192 | F40: 129338.62 | G40: =IF(POINT1.0!$E$12="open",(C40+Q19)/(B40*-1*(2*I40*$B$59+E40*$B$62+B58)),IF(data!F40-((C40+Q19)/(B40*-1*(2*I40*$B$59+E40*$B$62+B58)))+data!F40>0,data!F40-((C40+Q19)/(B40*-1*(2*I40*$B$59+E40*$B$62+B58)))+data!F40,1)) -> 129487.5012 | H40: 53833687.99 | I40: 17.8027138 | J40: =C83 -> 164323.8257 | L40: =IF(POINT1.0!$E$14="nee",IF(POINT1.0!$E$13="nee",I19,data!G40),data!J40) -> 129487.5012
A42: 1 | B42: -0.084504
A43: 2 | B43: -0.0687579
A44: 3 | B44: -0.0116478
A45: 4 | B45: -0.0507356
A46: 5 | B46: -0.0397835
A47: 6 | B47: -0.2259715
A48: 7 | B48: 0.0145122
A49: 8 | B49: -0.053115
A50: 9 | B50: -0.0660032
A51: 10 | B51: -0.0463166
A52: 11 | B52: -0.0283603
A53: 12 | B53: -0.035949
A54: 13 | B54: -0.0324922
A55: 14 | B55: -0.0326589
A56: 15 | B56: -0.0556213
A57: 16 | B57: -0.0129049
A58: 17 | B58: 0.1603174
A59: c.lnckost#c.lnckost | B59: 0.0036602
A60: c.lnpat#c.lnpat | B60: 0.0197731
A61: lnpat | B61: 1.29439
A62: c.lnpat#c.lnckost | B62: -0.0358403
A63: jaar | B63: -0.0177239
A64: _cons | B64: 33.6769
A66: Cancer | B66: 16997 | C66: 24598.06656
A67: Circulatory | B67: 7038 | C67: 10185.39698
A68: Respiratory | B68: 1998 | C68: 2891.506559
A69: Gastrointestinal | B69: 7293 | C69: 10554.4331
A70: Infectious | B70: 20829 | C70: 30143.7388
A71: Endocrine | B71: 3124 | C71: 4521.0543
A72: Neurological | B72: 5480 | C72: 7930.65863
A73: Genitourinary | B73: 43813 | C73: 63406.19463
A74: Maternity | B74: 2969208 | C74: 4297039.243
A75: blood | B75: 9419 | C75: 13631.18132
A76: Mental | B76: 18744 | C76: 27126.3258
A77: Learning | B77: 149883 | C77: 216910.7495
A78: vision | B78: 45788 | C78: 66264.41558
A79: hearing | B79: 6239 | C79: 9029.083795
A80: Dental | B80: 42472 | C80: 61465.49879
A81: Skin | B81: 101042 | C81: 146228.0309
A82: Musculoskeletal | B82: 15628 | C82: 22616.8491
A83: Poisoning | B83: 113546 | C83: 164323.8257
A85: average | B85: 12936 | C85: 18720.98541
A87: inflation | B87: 119.17
A88: exchange rate | B88: 1.2144

Sheet lijsten (hidden)
A1: Lijst 1
A3: open | B3: nee | C3: alle hoofdstukken | E3: niet van toepassing
A4: gesloten | B4: ja | C4: infectieziekten | D4: =IF(POINT1.0!$E$12="open",lijsten!$E$3,lijsten!E4) -> niet van toepassing | E4: 0 | G4: historisch
C5: nieuwvormingen | D5: =IF(POINT1.0!$E$12="open",lijsten!$E$3,lijsten!E5) -> niet van toepassing | E5: 0.1 | G5: proportioneel
C6: bloedziekten | D6: =IF(POINT1.0!$E$12="open",lijsten!$E$3,lijsten!E6) -> niet van toepassing | E6: 0.2
C7: endocriene aandoeningen | D7: =IF(POINT1.0!$E$12="open",lijsten!$E$3,lijsten!E7) -> niet van toepassing | E7: 0.3
C8: psychische aandoeningen | D8: =IF(POINT1.0!$E$12="open",lijsten!$E$3,lijsten!E8) -> niet van toepassing | E8: 0.4
C9: zenuwziekten | D9: =IF(POINT1.0!$E$12="open",lijsten!$E$3,lijsten!E9) -> niet van toepassing | E9: 0.5
C10: oog- en oorziekten | D10: =IF(POINT1.0!$E$12="open",lijsten!$E$3,lijsten!E10) -> niet van toepassing | E10: 0.6
C11: hart- en vaatziekten | D11: =IF(POINT1.0!$E$12="open",lijsten!$E$3,lijsten!E11) -> niet van toepassing | E11: 0.7
C12: longziekten | D12: =IF(POINT1.0!$E$12="open",lijsten!$E$3,lijsten!E12) -> niet van toepassing | E12: 0.8
C13: gastrointestinale ziekten | D13: =IF(POINT1.0!$E$12="open",lijsten!$E$3,lijsten!E13) -> niet van toepassing | E13: 0.9
C14: huidziekten | D14: =IF(POINT1.0!$E$12="open",lijsten!$E$3,lijsten!E14) -> niet van toepassing | E14: 1
C15: botspierziekten
C16: urogenitale ziekten
C17: zwangerschap en nieuwgeborenen
C18: congenitale ziekten
C19: overige symptomen
C20: letsels

Sheet hulpsheet (hidden)
B1: Verloren QALYS
A2: infectieziekten | B2: =data!M3 -> 53.96616047
A3: nieuwvormingen | B3: =data!M4 -> 194.6153513
A4: bloedziekten | B4: =data!M5 -> 14.93218599
A5: endocriene aandoeningen | B5: =data!M6 -> 45.03911459
A6: psychische aandoeningen | B6: =data!M7 -> 49.79041157
A7: zenuwziekten | B7: =data!M8 -> 87.7059098
A8: oog- en oorziekten | B8: =data!M9 -> 3.65789833
A9: hart- en vaatziekten | B9: =data!M10 -> 13.81065826
A10: longziekten | B10: =data!M11 -> 23.79679608
A11: gastrointestinale ziekten | B11: =data!M12 -> 25.15301713
A12: huidziekten | B12: =data!M13 -> 52.51887836
A13: botspierziekten | B13: =data!M14 -> 0
A14: urogenitale ziekten | B14: =data!M15 -> 5.05972052
A15: zwangerschap en nieuwgeborenen | B15: =data!M16 -> 11.63763003
A16: congenitale ziekten | B16: =data!M17 -> 41.10877274
A17: overige symptomen | B17: =data!M18 -> 29.10197825
A18: letsels | B18: =data!M19 -> 29.24748663
